bitfinex-derivatives/quotes_SOLF0:USTF0_20241024
["timestamp","ask_amount","ask_price","bid_price","bid_amount"]
[1729793650389,2.8414,176.09,176.07,2.8415]
[1729793650584,7.86023704,176.11,176.06,12.20023704]
[1729793651305,2.8414,176.08,176.06,15.04193704]
[1729793654102,1.2437,176.13,176.07,7.86023704]
[1729793654294,1.2437,176.13,176.1,10.70133704]
[1729793654507,1.2437,176.13,176.1,7.86023704]
[1729793654800,2.841,176.11,176.09,7.86023704]
[1729793655003,2.841,176.11,176.08,10.70163704]
[1729793655824,2.8412,176.1,176.08,7.86023704]
[1729793657125,2.8409,176.11,176.09,7.86023704]
[1729793657304,1.2437,176.13,176.09,7.86023704]
[1729793657596,2.8409,176.12,176.09,10.70133704]
[1729793657811,2.8409,176.12,176.09,7.86023704]
[1729793659196,2.8409,176.12,176.09,10.70143704]
[1729793663400,1.2438,176.18,176.11,7.86023704]
[1729793663599,1.2438,176.18,176.1,4.32]
[1729793663600,10.34283704,176.18,176.12,10.70103704]
[1729793664207,10.34283704,176.18,176.12,7.86023704]
[1729793664717,2.8406,176.14,176.12,7.86023704]
[1729793667626,10.34283704,176.18,176.12,10.70093704]
[1729793667627,2.8403,176.15,176.12,10.70093704]
[1729793667808,10.34283704,176.18,176.12,10.70093704]
[1729793668799,10.34283704,176.18,176.12,7.86023704]
[1729793669001,2.8406,176.14,176.12,7.86023704]
[1729793669206,2.4826,176.18,176.12,7.86023704]
[1729793669411,7.86023704,176.17,176.12,7.86023704]
[1729793669607,2.8406,176.14,176.12,7.86023704]
[1729793671542,2.4826,176.18,176.12,7.86023704]
[1729793671728,7.86023704,176.17,176.12,7.86023704]
[1729793673025,2.4826,176.18,176.12,7.86023704]
[1729793673221,10.34283704,176.18,176.12,7.86023704]
[1729793674016,2.8405,176.14,176.12,7.86023704]
[1729793677018,7.86023704,176.16,176.1,4.32]
[1729793677222,7.86023704,176.16,176.11,4.32]
[1729793677537,7.86023704,176.14,176.09,12.18023704]
[1729793677926,7.86023704,176.14,176.09,15.02143704]
[1729793677927,2.8407,176.13,176.09,15.02143704]
[1729793678122,7.86023704,176.14,176.09,15.02143704]
[1729793678328,7.86023704,176.16,176.11,7.86023704]
[1729793678520,2.4826,176.18,176.13,7.86023704]
[1729793678521,2.8404,176.15,176.13,7.86023704]
[1729793678727,2.4826,176.18,176.13,7.86023704]
[1729793679430,2.8404,176.14,176.13,7.86023704]
[1729793686244,2.8404,176.14,176.12,2.8408]
[1729793686544,2.8404,176.14,176.13,7.86023704]
[1729793689147,7.86023704,176.18,176.13,7.86023704]
[1729793689344,2.8404,176.15,176.13,7.86023704]
[1729793695558,2.84,176.17,176.15,2.8402]
[1729793696655,2.84,176.17,176.16,7.86023704]
[1729793697361,2.8398,176.19,176.17,2.8399]
[1729793697548,165.38060847,176.21,176.17,10.70013704]
[1729793697951,2.8396,176.2,176.17,10.70013704]
[1729793699157,165.38060847,176.21,176.17,10.70013704]
[1729793699357,2.8397,176.19,176.17,10.70013704]
[1729793700956,173.24084551,176.21,176.15,7.1603]
[1729793701241,173.24084551,176.21,176.15,15.02053704]
[1729793701827,2.8399,176.18,176.15,15.02053704]
[1729793701982,2.8399,176.18,176.15,7.1603]
[1729793702186,2.8399,176.18,176.15,15.02053704]
[1729793702956,2.8405,176.14,176.11,7.1609]
[1729793703159,10.34063704,176.17,176.11,4.32]
[1729793703664,2.8404,176.15,176.12,2.8407]
[1729793704583,2.8404,176.14,176.12,2.8407]
[1729793705566,7.86023704,176.14,176.06,61.34]
[1729793705801,7.86023704,176.13,176.07,5.7407438]
[1729793706011,7.86023704,176.13,176.08,1.4207438]
[1729793706275,7.86023704,176.13,176.09,1.42090699]
[1729793706514,2.841,176.11,176.08,2.8413]
[1729793707694,2.841,176.11,176.09,1.42093018]
[1729793707864,2.841,176.11,176.08,2.8413]
[1729793708181,2.841,176.11,176.09,9.28116719]
[1729793708371,2.841,176.11,176.09,7.86023704]
[1729793708782,2.841,176.11,176.08,2.8413]
[1729793709069,2.841,176.11,176.09,1.42092891]
[1729793709270,2.841,176.11,176.08,10.70153704]
[1729793709570,2.841,176.11,176.09,1.42092767]
[1729793709766,2.841,176.11,176.1,1.42092767]
[1729793710768,2.8409,176.12,176.1,1.42092767]
[1729793710963,7.86023704,176.13,176.09,2.8412]
[1729793711157,7.86023704,176.13,176.08,7.86023704]
[1729793711362,2.8409,176.11,176.09,1.42100286]
[1729793711566,2.8409,176.11,176.08,10.70153704]
[1729793711770,2.8409,176.11,176.09,1.42096483]
[1729793712072,2.8409,176.11,176.08,10.70153704]
[1729793712380,2.8409,176.11,176.09,1.42095423]
[1729793712571,2.8409,176.11,176.1,1.42095423]
[1729793713654,10.70103704,176.12,176.1,1.42095423]
[1729793713865,10.70103704,176.12,176.09,2.8412]
[1729793714071,10.70103704,176.12,176.1,1.42087292]
[1729793714263,10.70103704,176.12,176.09,2.8412]
[1729793714576,6.8004,176.17,176.07,4.32]
[1729793714577,2.8407,176.13,176.1,12.12201234]
[1729793714757,2.8407,176.13,176.11,1.4208753]
[1729793714974,7.86023704,176.15,176.1,7.86023704]
[1729793715165,2.8406,176.14,176.11,4.26158345]
[1729793715377,7.86023704,176.15,176.07,4.32]
[1729793715556,10.70063704,176.15,176.12,2.8406]
[1729793715885,2.4804,176.17,176.12,7.86023704]
[1729793715972,2.4804,176.17,176.13,1.42071562]
[1729793716170,2.4804,176.17,176.12,7.86023704]
[1729793716369,2.4804,176.17,176.13,4.26131036]
[1729793716370,2.8402,176.16,176.13,4.26131036]
[1729793716570,2.4804,176.17,176.13,2.8406]
[1729793717564,2.8403,176.15,176.12,10.70093704]
[1729793717784,2.8403,176.15,176.13,1.42071376]
[1729793718070,7.86023704,176.16,176.12,2.8407]
[1729793718271,7.86023704,176.16,176.13,1.42072703]
[1729793718566,7.86023704,176.16,176.12,2.8407]
[1729793718867,7.86023704,176.16,176.13,1.42072703]
[1729793719067,2.8403,176.15,176.12,2.8407]
[1729793719272,2.8403,176.15,176.13,1.42070616]
[1729793719477,2.8403,176.15,176.12,2.8407]
[1729793719726,2.8403,176.15,176.13,1.42070616]
[1729793719912,2.8403,176.15,176.12,2.8407]
[1729793720106,2.8403,176.15,176.13,1.42070695]
[1729793720263,2.8403,176.15,176.12,2.8407]
[1729793720486,2.8403,176.15,176.13,1.42069427]
[1729793720762,2.8403,176.15,176.12,2.8407]
[1729793720972,2.8404,176.14,176.13,1.42069496]
[1729793722375,2.8404,176.14,176.13,1.42070941]
[1729793725068,7.86023704,176.14,175.93,18.27676505]
[1729793725273,7.86023704,176.09,176.02,4.32]
[1729793725488,7.86023704,176.08,176.02,4.32]
[1729793725864,9.10263704,176.08,176.03,7.86023704]
[1729793726190,2.8417,176.07,176.04,2.8419]
[1729793728835,2.8417,176.07,176.01,2.8425]
[1729793728836,2.8422,176.04,176.01,2.8425]
[1729793729002,2.8422,176.04,176.01,10.70273704]
[1729793729382,2.842,176.05,176.02,2.8424]
[1729793729580,1.2424,176.08,176.03,7.86023704]
[1729793729794,1.2424,176.08,176.0,4.32]
[1729793729795,1.2424,176.08,176.04,7.86023704]
[1729793732487,4.0839,176.08,176.05,2.8419]
[1729793732719,1.2424,176.08,176.05,2.8419]
[1729793732910,1.2424,176.08,176.04,7.86023704]
[1729793734380,2.8416,176.07,176.04,10.70223704]
[1729793737395,2.8416,176.07,176.04,15.02223704]
[1729793737581,2.8416,176.07,176.04,7.162]
[1729793738406,2.8416,176.07,176.04,15.02223704]
[1729793739906,2.8416,176.07,176.04,7.162]
[1729793740095,1.1984,176.12,176.06,7.86023704]
[1729793740310,1.2156,176.13,176.09,7.86023704]
[1729793740583,2.841,176.11,176.09,10.70143704]
[1729793741289,2.8408,176.12,176.1,2.8411]
[1729793741591,12.18023704,176.15,176.09,7.86023704]
[1729793742729,2.8409,176.12,176.09,10.70143704]
[1729793743391,12.18023704,176.15,176.09,10.70143704]
[1729793743612,2.8409,176.11,176.09,7.86023704]
[1729793750421,2.8409,176.11,176.08,7.1613]
[1729793750606,2.8411,176.1,176.08,7.1613]
[1729793751658,7.86023704,176.1,176.05,12.16023704]
[1729793752893,2.8417,176.07,176.05,12.16023704]
[1729793756104,4.3,176.14,176.08,2.8414]
[1729793756296,7.86023704,176.13,176.08,10.70163704]
[1729793756508,7.86023704,176.13,176.08,7.86023704]
[1729793756697,2.841,176.11,176.08,10.70153704]
[1729793759804,2.841,176.11,176.08,10.70153704]
[1729793760390,2.4101,176.16,176.1,7.86023704]
[1729793760391,7.86023704,176.15,176.1,7.86023704]
[1729793760794,2.8407,176.13,176.1,10.70123704]
[1729793761095,7.86023704,176.15,176.1,7.86023704]
[1729793762395,2.4101,176.16,176.12,7.86023704]
[1729793762596,1.1733,176.16,176.12,7.86023704]
[1729793762906,2.8403,176.15,176.12,10.70083704]
[1729793763097,1.1733,176.16,176.12,10.70083704]
[1729793763501,2.8405,176.14,176.12,7.86023704]
[1729793763997,2.84,176.17,176.14,2.8403]
[1729793764505,2.84,176.17,176.13,12.16023704]
[1729793764689,165.38515829,176.22,176.13,12.16023704]
[1729793765004,7.86023704,176.18,176.13,4.3]
[1729793765194,7.86023704,176.17,176.13,7.1405]
[1729793765394,2.8402,176.16,176.13,7.1405]
[1729793766399,2.8397,176.19,176.16,2.84]
[1729793766600,2.8397,176.19,176.15,7.86023704]
[1729793766899,2.8401,176.17,176.14,2.8404]
[1729793767995,2.8401,176.17,176.13,12.16023704]
[1729793768302,2.8404,176.15,176.13,4.3]
[1729793769998,1.2305,176.21,176.13,4.3]
[1729793770207,2.8404,176.15,176.12,2.8407]
[1729793776803,7.86023704,176.17,176.11,12.16023704]
[1729793777006,1.2305,176.21,176.1,12.16023704]
[1729793777007,7.86023704,176.15,176.1,12.16023704]
[1729793777607,2.8409,176.12,176.1,4.3]
[1729793777910,1.1718,176.15,176.07,4.3]
[1729793778117,7.86023704,176.11,176.07,7.86023704]
[1729793778299,7.86023704,176.13,176.08,7.86023704]
[1729793778909,2.8407,176.13,176.1,10.70123704]
[1729793779311,2.8405,176.14,176.11,10.70103704]
[1729793779513,9.07443704,176.16,176.11,10.70103704]
[1729793779914,7.86023704,176.15,176.11,2.8408]
[1729793780306,2.8407,176.13,176.11,2.8408]
[1729793781121,7.86023704,176.15,176.1,7.86023704]
[1729793782331,7.86023704,176.15,176.09,7.86023704]
[1729793783027,2.8408,176.12,176.09,10.70133704]
[1729793783423,7.86023704,176.12,176.07,7.86023704]
[1729793783627,2.8412,176.1,176.07,10.70173704]
[1729793784032,7.86023704,176.12,176.07,10.70173704]
[1729793784230,7.86023704,176.11,176.05,7.86023704]
[1729793784534,7.86023704,176.09,176.06,4.3]
[1729793784730,7.86023704,176.09,176.05,4.3]
[1729793785233,2.8415,176.08,176.05,7.1418]
[1729793785937,7.86023704,176.06,176.02,7.86023704]
[1729793786132,7.86023704,176.06,176.02,12.16023704]
[1729793786530,2.842,176.05,176.02,2.8422]
[1729793788133,2.8421,176.04,176.01,12.16023704]
[1729793788328,7.86023704,176.05,176.02,2.8424]
[1729793788529,7.86023704,176.06,176.02,2.8424]
[1729793788831,7.86023704,176.06,176.02,10.70263704]
[1729793789736,7.86023704,176.06,176.02,7.86023704]
[1729793789932,1.2766,176.08,176.05,2.8419]
[1729793790239,4.1181,176.08,176.05,2.8419]
[1729793790435,1.2766,176.08,176.05,2.8419]
[1729793790641,7.86023704,176.07,176.04,2.842]
[1729793791528,2.8417,176.06,176.04,2.842]
[1729793792624,2.8419,176.05,176.03,2.8422]
[1729793794332,2.8419,176.05,176.02,2.8423]
[1729793794537,2.8422,176.04,176.01,4.3]
[1729793794932,7.86023704,176.06,176.02,2.8423]
[1729793795140,2.8421,176.04,176.02,2.8423]
[1729793795334,2.8421,176.04,176.01,4.3]
[1729793795741,2.8422,176.03,176.01,7.1425]
[1729793796442,2.8422,176.03,176.01,2.8425]
[1729793797440,2.8424,176.03,175.99,2.8428]
[1729793797639,2.8424,176.03,175.9,5.6886]
[1729793797640,7.86023704,176.02,175.98,4.3]
[1729793798444,7.86023704,176.01,175.98,7.143]
[1729793799140,10.70293704,176.01,175.98,7.143]
[1729793800141,10.70293704,176.01,175.98,2.843]
[1729793802241,2.8427,176.01,175.98,2.843]
[1729793802639,2.8422,176.04,176.02,2.8423]
[1729793802842,6.7482,176.07,175.98,7.86023704]
[1729793803148,10.70233704,176.04,176.01,2.8424]
[1729793803544,7.86023704,176.04,175.98,7.86023704]
[1729793803745,2.8423,176.03,176.0,2.8427]
[1729793805649,10.70253704,176.03,176.0,2.8427]
[1729793808744,10.70253704,176.03,175.98,7.86023704]
[1729793809048,10.70253704,176.03,176.01,2.8425]
[1729793809848,7.86023704,176.03,175.98,7.86023704]
[1729793810046,2.8419,176.05,176.03,2.8421]
[1729793810246,7.86023704,176.05,175.97,4.3]
[1729793810445,7.86023704,176.05,175.99,7.86023704]
[1729793810743,2.8421,176.04,176.02,2.8423]
[1729793814743,10.70213704,176.05,175.99,7.86023704]
[1729793814950,10.70213704,176.05,176.03,2.8422]
[1729793817250,2.8419,176.05,176.03,2.8422]
[1729793819049,1.2766,176.08,176.03,7.86023704]
[1729793819358,4.118,176.08,176.03,7.86023704]
[1729793819760,2.8416,176.07,176.05,2.8418]
[1729793820647,2.8417,176.06,176.02,2.8423]
[1729793820845,7.86023704,176.05,176.01,4.3]
[1729793821150,7.86023704,176.05,175.98,1.1654]
[1729793821151,10.70253704,176.03,176.0,2.8426]
[1729793821751,2.8424,176.02,176.0,2.8426]
[1729793821949,7.86023704,176.03,176.0,2.8426]
[1729793822953,7.86023704,176.02,176.0,2.8426]
[1729793825054,7.86023704,176.02,176.01,2.8425]
[1729793825258,7.86023704,176.02,175.99,4.3]
[1729793826161,7.86023704,176.02,176.0,2.8426]
[1729793828654,7.86023704,176.02,175.99,4.3]
[1729793828859,2.8429,175.99,175.97,2.8431]
[1729793829165,7.86023704,175.99,175.97,2.8431]
[1729793829556,7.86023704,175.99,175.96,2.8433]
[1729793831361,2.8432,175.98,175.96,2.8433]
[1729793834263,7.86023704,175.97,175.96,2.8433]
[1729793836966,7.86023704,175.97,175.92,61.34]
[1729793837163,4.3,176.05,175.92,4.3]
[1729793837164,7.86023704,175.95,175.92,4.3]
[1729793838165,10.70363704,175.96,175.93,2.8437]
[1729793843575,2.8434,175.96,175.93,2.8437]
[1729793843778,7.86023704,175.95,175.93,2.8437]
[1729793844880,4.0243,175.99,175.96,2.8432]
[1729793845081,10.35753704,176.0,175.96,2.8432]
[1729793846285,2.8431,175.98,175.96,2.8432]
[1729793861184,10.70333704,175.98,175.96,2.8432]
[1729793866296,2.8431,175.98,175.96,2.8432]
[1729793866900,4.3,176.03,175.85,1.2616]
[1729793866901,2.8423,176.03,176.0,2.8426]
[1729793867095,1.237,176.04,176.01,7.86023704]
[1729793867291,7.86023704,176.03,175.98,4.28]
[1729793867489,7.86023704,176.02,175.98,4.28]
[1729793867696,2.8426,176.01,175.98,7.123]
[1729793867896,7.86023704,176.0,175.98,7.123]
[1729793869001,10.70303704,176.0,175.97,2.8432]
[1729793869801,7.86023704,176.02,175.97,7.86023704]
[1729793870002,2.8425,176.02,175.99,2.8427]
[1729793870209,7.86023704,176.04,176.0,7.86023704]
[1729793871005,10.70243704,176.04,176.01,2.8425]
[1729793871404,7.86023704,176.04,176.01,2.8425]
[1729793872403,2.8422,176.03,176.01,2.8425]
[1729793873402,10.70243704,176.03,176.01,2.8425]
[1729793874805,2.8422,176.03,176.01,2.8425]
[1729793876095,5.2974,176.05,176.02,2.8423]
[1729793876408,5.2974,176.05,175.99,12.14023704]
[1729793876409,10.31563704,176.05,175.99,12.14023704]
[1729793877401,2.8422,176.03,175.99,12.14023704]
[1729793878101,2.8422,176.03,176.01,2.8425]
[1729793878502,2.8422,176.03,175.99,4.28]
[1729793878705,2.8422,176.03,176.0,2.8426]
[1729793879008,2.8425,176.01,175.99,4.28]
[1729793879398,2.8425,176.01,175.98,2.8429]
[1729793879906,7.86023704,176.02,175.96,4.28]
[1729793880101,2.8428,176.0,175.97,2.8432]
[1729793880296,7.86023704,176.02,175.89,5.6889]
[1729793880297,7.86023704,175.99,175.94,7.86023704]
[1729793880498,2.8431,175.98,175.95,2.8434]
[1729793880703,4.28,176.04,175.93,4.28]
[1729793880704,7.86023704,175.97,175.93,4.28]
[1729793882013,10.70353704,175.97,175.94,2.8436]
[1729793883705,1.2517,176.03,175.94,7.86023704]
[1729793883907,2.8426,176.01,175.97,10.70333704]
[1729793884105,7.86023704,176.02,175.97,10.70333704]
[1729793884299,7.86023704,176.02,175.97,2.8431]
[1729793884514,7.86023704,176.0,175.97,2.8431]
[1729793884717,1.2517,176.03,175.97,2.8431]
[1729793885012,10.70283704,176.01,175.98,2.8429]
[1729793885307,1.2517,176.03,175.93,4.28]
[1729793885308,7.86023704,176.02,175.97,7.86023704]
[1729793885507,7.86023704,176.02,175.97,12.14023704]
[1729793885821,10.70273704,176.02,175.99,2.8428]
[1729793886717,1.2517,176.03,176.01,2.8424]
[1729793886718,7.86023704,176.03,176.01,2.8424]
[1729793887411,2.8421,176.04,176.01,2.8424]
[1729793888509,2.8424,176.02,176.0,2.8426]
[1729793888808,7.86023704,176.01,175.95,7.86023704]
[1729793889013,7.86023704,176.01,175.96,4.28]
[1729793890304,2.8429,175.99,175.97,2.8431]
[1729793895016,10.31563704,176.05,176.01,2.8425]
[1729793895208,10.31563704,176.05,176.0,7.86023704]
[1729793896209,10.31563704,176.05,175.99,4.28]
[1729793896514,10.31563704,176.05,175.99,12.14023704]
[1729793896915,2.8424,176.03,176.0,2.8426]
[1729793901119,2.8417,176.07,176.02,7.86023704]
[1729793901511,2.8417,176.07,176.04,7.86023704]
[1729793901916,7.86023704,176.09,176.04,7.86023704]
[1729793902220,2.8417,176.06,176.04,10.70223704]
[1729793902914,2.8417,176.06,176.03,10.70243704]
[1729793903110,7.86023704,176.07,176.03,10.70243704]
[1729793903418,2.8419,176.05,176.03,2.8422]
[1729793915843,2.8419,176.05,176.01,7.86023704]
[1729793916036,2.8419,176.05,176.02,2.8423]
[1729793918025,7.86023704,176.03,175.91,3.7253]
[1729793918336,7.86023704,175.99,175.96,2.8432]
[1729793919329,10.70313704,175.99,175.94,7.86023704]
[1729793919528,10.70313704,175.99,175.97,2.8432]
[1729793923040,10.70313704,175.99,175.94,7.86023704]
[1729793923346,10.70313704,175.99,175.96,2.8433]
[1729793924039,1.2324,176.03,175.94,7.86023704]
[1729793924335,7.86023704,176.01,175.97,2.8431]
[1729793924937,2.8429,175.99,175.97,2.8431]
[1729793925442,10.70313704,175.99,175.97,2.8431]
[1729793926035,2.89231496,176.08,175.98,7.86023704]
[1729793926232,7.86023704,176.06,176.0,7.86023704]
[1729793926642,7.86023704,176.06,176.0,12.14023704]
[1729793926847,2.8422,176.04,176.01,2.8425]
[1729793931849,2.8422,176.04,176.02,2.8424]
[1729793932042,169.78655625,176.1,176.03,7.86023704]
[1729793932240,7.86023704,176.09,176.03,7.86023704]
[1729793932444,7.86023704,176.09,176.04,2.8419]
[1729793932846,2.8418,176.06,176.04,2.8419]
[1729793936651,4.28,176.12,176.04,2.8419]
[1729793936652,2.8414,176.09,176.06,2.8417]
[1729793936851,2.8414,176.09,176.06,10.70193704]
[1729793937649,2.8414,176.08,176.06,10.70193704]
[1729793938057,2.8414,176.08,176.06,7.86023704]
[1729793938256,2.8414,176.08,176.05,2.8418]
[1729793941354,7.86023704,176.1,176.05,2.8418]
[1729793941657,2.8416,176.07,176.05,2.8418]
[1729793942060,7.86023704,176.1,176.05,2.8418]
[1729793942252,2.8415,176.08,176.05,2.8418]
[1729793951056,2.8416,176.07,176.05,2.8418]
[1729793951655,2.8421,176.04,176.02,7.1223]
[1729793951864,2.8421,176.04,176.02,2.8423]
[1729793952965,7.86023704,176.06,176.01,4.28]
[1729793953167,2.8421,176.04,176.01,7.1224]
[1729793953767,2.8421,176.04,176.01,2.8424]
[1729793954262,7.86023704,176.05,175.99,7.86023704]
[1729793954472,7.86023704,176.05,176.0,2.8427]
[1729793954961,2.8423,176.03,176.0,2.8427]
[1729793961263,4.28,176.1,176.01,7.86023704]
[1729793961465,7.86023704,176.09,176.04,2.842]
[1729793963367,2.8418,176.06,176.04,2.842]
[1729793975782,7.86023704,176.07,176.04,2.842]
[1729793975982,2.8417,176.06,176.04,2.842]
[1729793978283,2.8418,176.06,176.03,7.1221]
[1729793982585,2.8418,176.06,176.03,2.8421]
[1729793986587,7.86023704,176.07,176.03,2.8421]
[1729793986792,2.8418,176.06,176.03,2.8421]
[1729793987191,7.86023704,176.04,175.99,2.8428]
[1729793987391,7.86023704,176.03,175.97,4.26]
[1729793987592,7.86023704,176.03,175.97,12.12023704]
[1729793988795,2.8425,176.02,175.99,2.8428]
[1729793988991,2.8425,176.02,175.98,7.86023704]
[1729793989891,2.8425,176.02,175.99,2.8428]
[1729793993196,7.86023704,176.03,175.91,3.7253]
[1729793993493,7.86023704,175.98,175.92,4.26]
[1729793993697,7.86023704,175.98,175.91,3.7253]
[1729793993995,2.8432,175.97,175.95,2.8435]
[1729793994197,7.86023704,175.98,175.95,2.8435]
[1729793995294,10.70333704,175.98,175.95,2.8435]
[1729793997094,10.70333704,175.98,175.93,7.86023704]
[1729793997294,10.70333704,175.98,175.96,2.8433]
[1729793997996,7.86023704,175.98,175.96,2.8433]
[1729794000091,7.86023704,176.04,175.97,7.86023704]
[1729794000296,7.86023704,176.04,175.91,3.7253]
[1729794000297,7.86023704,176.04,175.99,7.86023704]
[1729794001202,7.86023704,176.04,176.0,2.8426]
[1729794001410,2.4329,176.05,175.99,7.86023704]
[1729794001598,7.86023704,176.04,175.99,7.86023704]
[1729794002403,10.70233704,176.04,176.01,2.8424]
[1729794003100,10.70263704,176.02,175.99,2.8428]
[1729794003298,10.70263704,176.02,175.98,4.26]
[1729794003299,7.86023704,176.02,175.98,4.26]
[1729794003504,7.86023704,176.0,175.98,4.26]
[1729794003699,7.86023704,175.99,175.95,4.26]
[1729794004002,7.86023704,175.97,175.95,4.26]
[1729794004206,10.70333704,175.98,175.95,7.1035]
[1729794005107,10.70333704,175.98,175.96,2.8433]
[1729794005303,4.26,176.04,175.95,4.26]
[1729794005602,2.4329,176.05,175.95,4.26]
[1729794005603,7.86023704,176.02,175.97,7.86023704]
[1729794005920,2.8429,176.0,175.95,12.12023704]
[1729794006109,7.86023704,175.97,175.91,1.2619]
[1729794006407,7.86023704,175.97,175.94,2.8437]
[1729794006799,7.86023704,175.96,175.94,2.8437]
[1729794006999,7.86023704,175.98,175.95,2.8435]
[1729794008314,10.70333704,175.98,175.95,2.8435]
[1729794009211,7.86023704,175.98,175.92,4.26]
[1729794009412,2.8433,175.97,175.94,2.8436]
[1729794010715,7.86023704,175.98,175.92,12.12023704]
[1729794010914,7.86023704,175.98,175.93,7.86023704]
[1729794011414,10.70343704,175.98,175.92,12.12023704]
[1729794012306,10.70343704,175.98,175.95,2.8435]
[1729794013610,7.86023704,175.98,175.92,12.12023704]
[1729794013817,7.86023704,175.96,175.94,2.8436]
[1729794020820,7.86023704,175.96,175.93,2.8437]
[1729794020821,7.86023704,175.95,175.93,2.8437]
[1729794022818,7.86023704,175.96,175.95,2.8434]
[1729794023020,10.70343704,175.98,175.95,2.8434]
[1729794023724,1.2426,175.99,175.93,7.86023704]
[1729794024027,10.70313704,175.99,175.93,7.86023704]
[1729794024625,10.70313704,175.99,175.96,2.8433]
[1729794025024,7.86023704,175.99,175.93,7.86023704]
[1729794025223,7.86023704,175.99,175.97,2.8431]
[1729794026126,10.70313704,175.99,175.96,2.8432]
[1729794026328,7.86023704,175.99,175.93,7.86023704]
[1729794026525,7.86023704,175.99,175.94,7.86023704]
[1729794026727,7.86023704,175.99,175.95,4.26]
[1729794027029,7.86023704,175.99,175.98,2.843]
[1729794030333,2.8426,176.01,175.98,2.843]
[1729794030533,7.86023704,176.0,175.98,2.843]
[1729794033335,7.86023704,176.0,175.95,4.26]
[1729794033639,7.86023704,175.96,175.92,4.26]
[1729794033836,7.86023704,175.94,175.93,2.8438]
[1729794034636,7.86023704,175.94,175.92,7.1039]
[1729794034842,7.86023704,175.94,175.92,4.26]
[1729794036238,7.86023704,175.94,175.93,2.8438]
[1729794038834,7.86023704,175.95,175.93,2.8438]
[1729794040237,2.8437,175.94,175.91,2.844]
[1729794040438,7.86023704,175.93,175.9,4.26]
[1729794041136,7.86023704,175.93,175.92,2.844]
[1729794041841,7.86023704,175.93,175.91,2.8441]
[1729794042742,2.8438,175.94,175.91,2.8441]
[1729794042943,7.86023704,175.93,175.91,2.8441]
[1729794046845,10.70413704,175.93,175.9,7.1043]
[1729794049555,10.70413704,175.93,175.9,2.8443]
[1729794049844,7.86023704,175.91,175.88,7.1045]
[1729794050441,7.86023704,175.91,175.88,2.8445]
[1729794050641,7.86023704,175.9,175.88,2.8445]
[1729794050955,7.86023704,175.9,175.89,2.8445]
[1729794051149,7.86023704,175.91,175.89,2.8445]
[1729794051656,7.86023704,175.9,175.88,2.8446]
[1729794051862,4.26,175.96,175.87,4.26]
[1729794052060,7.86023704,175.9,175.87,4.26]
[1729794052264,7.86023704,175.9,175.88,2.8445]
[1729794058162,2.8433,175.97,175.93,2.8437]
[1729794058368,10.70353704,175.97,175.92,7.86023704]
[1729794059459,10.70353704,175.97,175.93,2.8438]
[1729794060170,5.2569,175.98,175.94,2.8436]
[1729794060363,13.11713704,175.98,175.94,2.8436]
[1729794060562,13.11713704,175.98,175.92,7.86023704]
[1729794062263,2.8432,175.97,175.94,2.8436]
[1729794064357,10.70343704,175.97,175.94,2.8436]
[1729794067562,7.86023704,175.96,175.94,2.8436]
[1729794068368,10.70363704,175.96,175.94,2.8436]
[1729794068561,7.86023704,175.95,175.9,2.8442]
[1729794068759,2.4138,175.98,175.89,4.26]
[1729794068760,7.86023704,175.91,175.89,4.26]
[1729794068962,7.86023704,175.91,175.87,4.26]
[1729794069161,7.86023704,175.91,175.89,2.8444]
[1729794076868,7.86023704,175.9,175.89,2.8444]
[1729794080383,2.4138,175.98,175.89,7.86023704]
[1729794080574,1.1686,175.98,175.95,7.86023704]
[1729794080773,7.86023704,176.0,175.95,7.86023704]
[1729794080975,10.70303704,176.0,175.96,2.8433]
[1729794081175,7.86023704,176.0,175.95,7.86023704]
[1729794081677,2.843,175.99,175.95,10.70363704]
[1729794082268,7.86023704,175.98,175.94,4.26]
[1729794082473,7.86023704,175.98,175.94,12.12023704]
[1729794083374,7.86023704,175.98,175.96,2.8433]
[1729794084383,2.843,175.99,175.96,2.8433]